fUST/lending_fUST_20240902
["ID","MTS","AMOUNT","RATE_DAILY","PERIOD"]
[336917327,1725241862669,-500.0,0.00024657,2]
[336917329,1725241862678,-500.0,0.00024931,2]
[336917331,1725241862687,-500.0,0.00025205,2]
[336917333,1725241862696,-2792.02282022,0.00026027,2]
[336917335,1725241862706,-1599.44,0.00026027,2]
[336917337,1725241862716,-500.0,0.00026027,2]
[336917339,1725241862726,-714.24,0.00026027,2]
[336917341,1725241862736,-500.0,0.00026027,2]
[336917343,1725241862748,-1097.03,0.00026027,2]
[336917345,1725241862758,-1710.39,0.00026027,2]
[336917347,1725241862767,-853.23,0.00026027,2]
[336917349,1725241862776,-1479.22,0.00026027,2]
[336917351,1725241862786,-500.0,0.00026027,2]
[336917353,1725241862795,-151.0,0.00026027,7]
[336917355,1725241862803,-500.0,0.00026027,2]
[336917357,1725241862812,-1420.47,0.00026027,2]
[336917359,1725241862823,-1502.11,0.00026027,2]
[336917361,1725241862832,-500.0,0.00026027,2]
[336917363,1725241862841,-715.22,0.00026027,2]
[336917365,1725241862851,-500.0,0.00026027,2]
[336917367,1725241862861,-2171.28,0.00026027,2]
[336917369,1725241862871,-500.0,0.00026027,2]
[336917371,1725241862880,-677.4,0.00026027,2]
[336917373,1725241862890,-987.53,0.00026027,2]
[336917375,1725241862899,-660.49,0.00026027,2]
[336917376,1725241862908,-1359.6,0.00026027,2]
[336917378,1725241862917,-500.0,0.00026027,2]
[336917380,1725241862927,-615.65,0.00026027,2]
[336917382,1725241862937,-510.15,0.00026027,2]
[336917384,1725241862946,-500.0,0.00026027,2]
[336917386,1725241862956,-521.85057116,0.00026027,2]
[336917389,1725241862966,-500.0,0.00026027,2]
[336917390,1725241862975,-1469.24,0.00026027,2]
[336917392,1725241862983,-1368.38,0.00026027,2]
[336917394,1725241862992,-3682.87,0.00026027,2]
[336917396,1725241863002,-784.79,0.00026027,2]
[336917398,1725241863011,-640.79,0.00026027,2]
[336917400,1725241863021,-500.0,0.00026027,2]
[336917402,1725241863030,-500.0,0.00026027,2]
[336917404,1725241863040,-1038.11,0.00026027,2]
[336917406,1725241863049,-1420.05,0.00026027,2]
[336917408,1725241863058,-1292.79,0.00026027,2]
[336917410,1725241863067,-1527.81,0.00026027,2]
[336917413,1725241863076,-2206.57,0.00026027,2]
[336917415,1725241863086,-500.0,0.00026027,2]
[336917417,1725241863095,-500.0,0.00026027,2]
[336917419,1725241863105,-559.58,0.00026027,2]
[336917421,1725241863114,-500.0,0.00026027,2]
[336917423,1725241863124,-540.95,0.00026027,2]
[336917425,1725241863134,-210.3217632,0.00026073,2]
[336917427,1725241863143,-5259.58,0.000261,14]
[336917429,1725241863152,-1678.53,0.000261,14]
[336917431,1725241863162,-176.557797,0.0002614,2]
[336917433,1725241863172,-151.0,0.00026188,3]
[336917435,1725241863182,-537.63537271,0.00026201,2]
[336917437,1725241863191,-194.445948,0.00026245,2]
[336917439,1725241863202,-9638.12405248,0.00026291,3]
[336917441,1725241863211,-1173.41,0.000263,2]
[336917443,1725241863221,-563.6,0.000263,2]
[336917445,1725241863230,-8441.89,0.000263,2]
[336917447,1725241863239,-1703.08,0.000263,2]
[336917449,1725241863248,-1974.8,0.000263,2]
[336917451,1725241863258,-3227.67,0.000263,2]
[336917453,1725241863267,-1206.98,0.000263,2]
[336917455,1725241863277,-1295.95,0.000263,2]
[336917457,1725241863287,-525.12,0.000263,2]
[336917459,1725241863296,-378.12025392,0.00026301,2]
[336917461,1725241863306,-589.49,0.00026301,2]
[336917463,1725241863315,-882.48,0.00026301,2]
[336917465,1725241863325,-500.0,0.00026301,2]
[336917467,1725241863335,-151.0,0.00026301,7]
[336917469,1725241863344,-282.21654048,0.00026301,2]
[336917471,1725241863355,-500.0,0.00026301,2]
[336917473,1725241863364,-692.14,0.00026301,2]
[336917475,1725241863374,-500.0,0.00026301,2]
[336917477,1725241863384,-500.0,0.00026301,2]
[336917479,1725241863393,-500.0,0.00026301,2]
[336917481,1725241863403,-1353.53,0.00026301,2]
[336917483,1725241863412,-690.61,0.00026301,2]
[336917485,1725241863422,-695.97,0.00026301,2]
[336917487,1725241863433,-500.0,0.00026301,2]
[336917489,1725241863444,-278.91177669,0.00026301,2]
[336917504,1725241863568,-209.17426054,0.00026301,2]
[336917506,1725241863582,-382.11573946,0.00026301,2]
[336917508,1725241863591,-519.39,0.00026301,2]
[336917510,1725241863601,-500.0,0.00026301,2]
[336917512,1725241863610,-502.25359957,0.00026301,2]
[336917514,1725241863619,-557.59,0.00026301,2]
[336917516,1725241863628,-501.46132272,0.00026301,2]
[336917518,1725241863637,-500.0,0.00026301,2]
[336917520,1725241863646,-500.0,0.00026301,2]
[336917522,1725241863655,-500.0,0.00026301,2]
[336917524,1725241863665,-500.0,0.00026301,2]
[336917526,1725241863674,-500.0,0.00026301,2]
[336917528,1725241863683,-500.0,0.00026301,2]
[336917530,1725241863692,-1056.18,0.00026301,2]
[336917532,1725241863702,-588.42,0.00026301,2]
[336917534,1725241863711,-500.0,0.00026301,2]
[336917536,1725241863720,-500.0,0.00026301,2]
[336917538,1725241863729,-1495.45,0.00026301,2]
[336917540,1725241863739,-1096.0,0.00026301,2]
[336917542,1725241863753,-500.0,0.00026301,2]
[336917544,1725241863763,-814.05,0.00026301,2]
[336917546,1725241863773,-500.0,0.00026301,2]
[336917549,1725241863783,-853.48,0.00026301,2]
[336917551,1725241863793,-1261.97,0.00026301,2]
[336917553,1725241863803,-382.1103834,0.00026301,2]
[336917554,1725241863812,-1312.91,0.00026301,2]
[336917556,1725241863821,-502.8123865,0.00026301,2]
[336917558,1725241863832,-1049.4,0.00026301,2]
[336917560,1725241863842,-751.59,0.00026301,2]
[336917562,1725241863852,-888.46,0.00026301,2]
[336917564,1725241863861,-956.79,0.00026301,2]
[336917566,1725241863871,-500.0,0.00026301,2]
[336917569,1725241863880,-567.63,0.00026301,2]
[336917571,1725241863890,-500.0,0.00026301,2]
[336917573,1725241863899,-500.0,0.00026301,2]
[336917575,1725241863908,-500.0,0.00026301,2]
[336917577,1725241863917,-500.0,0.00026301,2]
[336917578,1725241863926,-500.0,0.00026301,2]
[336917580,1725241863935,-500.0,0.00026301,2]
[336917582,1725241863945,-4058.39,0.00026301,2]
[336917584,1725241863955,-500.0,0.00026301,2]
[336917586,1725241863964,-734.36,0.00026301,2]
[336917588,1725241863973,-500.0,0.00026301,2]
[336917590,1725241863983,-500.0,0.00026301,2]
[336917592,1725241863993,-500.0,0.00026301,2]
[336917594,1725241864002,-500.0,0.00026301,2]
[336917596,1725241864011,-500.0,0.00026301,2]
[336917598,1725241864021,-500.0,0.00026301,2]
[336917601,1725241864030,-500.0,0.00026301,2]
[336917602,1725241864040,-500.0,0.00026301,2]
[336917605,1725241864050,-1316.0,0.00026301,2]
[336917607,1725241864059,-500.0,0.00026301,2]
[336917609,1725241864069,-500.0,0.00026301,2]
[336917611,1725241864078,-663.31,0.00026301,2]
[336917613,1725241864088,-666.35,0.00026301,2]
[336917615,1725241864097,-500.0,0.00026301,2]
[336917617,1725241864106,-873.75,0.00026301,2]
[336917619,1725241864116,-500.0,0.00026301,2]
[336917621,1725241864126,-771.43,0.00026301,2]
[336917623,1725241864135,-775.24,0.00026301,2]
[336917625,1725241864145,-500.0,0.00026301,2]
[336917627,1725241864154,-554.23,0.00026301,2]
[336917629,1725241864164,-500.0,0.00026301,2]
[336917631,1725241864174,-500.0,0.00026301,2]
[336917632,1725241864183,-500.0,0.00026301,2]
[336917634,1725241864192,-500.0,0.00026301,2]
[336917636,1725241864203,-500.0,0.00026301,2]
[336917638,1725241864212,-500.0,0.00026301,2]
[336917641,1725241864222,-500.0,0.00026301,2]
[336917642,1725241864231,-505.99282699,0.00026301,2]
[336917644,1725241864241,-500.0,0.00026301,2]
[336917646,1725241864251,-570.669813,0.00026301,7]
[336917648,1725241864261,-500.0,0.00026301,2]
[336917650,1725241864270,-809.88,0.00026301,2]
[336917652,1725241864280,-500.0,0.00026301,2]
[336917654,1725241864289,-570.669813,0.00026301,7]
[336917656,1725241864299,-2172.66,0.00026301,2]
[336917658,1725241864308,-500.0,0.00026301,2]
[336917660,1725241864318,-500.0,0.00026301,2]
[336917662,1725241864328,-500.0,0.00026301,2]
[336917664,1725241864338,-1751.19,0.00026301,2]
[336917666,1725241864348,-500.0,0.00026301,2]
[336917668,1725241864358,-500.0,0.00026301,2]
[336917670,1725241864370,-898.37,0.00026301,2]
[336917672,1725241864380,-529.3908934,0.00026301,2]
[336917674,1725241864390,-2340.67,0.00026301,2]
[336917676,1725241864400,-500.0,0.00026301,2]
[336917678,1725241864409,-598.55,0.00026301,2]
[336917680,1725241864419,-630.16,0.00026301,2]
[336917682,1725241864429,-500.0,0.00026301,2]
[336917684,1725241864440,-500.0,0.00026301,2]
[336917686,1725241864449,-500.0,0.00026301,2]
[336917688,1725241864465,-500.0,0.00026301,2]
[336917690,1725241864475,-1293.18,0.00026301,2]
[336917692,1725241864484,-500.0,0.00026301,2]
[336917694,1725241864494,-509.28993497,0.00026301,2]
[336917696,1725241864504,-500.0,0.00026301,2]
[336917698,1725241864514,-3476.66,0.00026301,2]
[336917700,1725241864524,-1516.91,0.00026301,2]
[336917702,1725241864534,-1634.96,0.00026301,2]
[336917704,1725241864544,-1875.06,0.00026301,2]
[336917706,1725241864554,-662.86,0.00026301,2]
[336917708,1725241864565,-500.0,0.00026301,2]
[336917710,1725241864574,-1453.83,0.00026301,2]
[336917712,1725241864584,-833.21,0.00026301,2]
[336917714,1725241864593,-1123.19,0.00026301,2]
[336917716,1725241864603,-971.65,0.00026301,2]
[336917719,1725241864613,-500.0,0.00026301,2]
[336917721,1725241864622,-500.0,0.00026301,2]
[336917722,1725241864631,-500.0,0.00026301,2]
[336917725,1725241864641,-2153.18,0.00026301,2]
[336917727,1725241864651,-500.0,0.00026301,2]
[336917729,1725241864660,-500.0,0.00026301,2]
[336917731,1725241864670,-1659.98,0.00026301,2]
[336917733,1725241864679,-1623.63,0.00026301,2]
[336917735,1725241864688,-2224.77,0.00026301,2]
[336917736,1725241864697,-1144.81,0.00026301,2]
[336917738,1725241864711,-700.92,0.00026301,2]
[336917740,1725241864720,-632.74,0.00026301,2]
[336917742,1725241864729,-1825.04,0.00026301,2]
[336917744,1725241864740,-514.74,0.00026301,2]
[336917746,1725241864752,-500.0,0.00026301,2]
[336917748,1725241864762,-554.09,0.00026301,2]
[336917750,1725241864772,-1198.03,0.00026301,2]
[336917752,1725241864783,-1509.68,0.00026301,2]
[336917754,1725241864793,-500.0,0.00026301,2]
[336917756,1725241864802,-2597.51,0.00026301,2]
[336917758,1725241864811,-500.0,0.00026301,2]
[336917760,1725241864824,-500.0,0.00026301,2]
[336917762,1725241864835,-500.0,0.00026301,2]
[336917764,1725241864847,-708.92,0.00026301,2]
[336917766,1725241864857,-500.0,0.00026301,2]
[336917768,1725241864868,-667.2,0.00026301,2]
[336917770,1725241864877,-5040.89,0.00026301,2]
[336917772,1725241864888,-1599.44,0.00026301,2]
[336917774,1725241864897,-500.0,0.00026301,2]
[336917776,1725241864907,-714.24,0.00026301,2]
[336917778,1725241864916,-500.0,0.00026301,2]
[336917780,1725241864926,-1097.03,0.00026301,2]
[336917782,1725241864937,-1710.39,0.00026301,2]
[336917784,1725241864948,-853.23,0.00026301,2]
[336917786,1725241864959,-1479.22,0.00026301,2]
[336917788,1725241864969,-500.0,0.00026301,2]
[336917790,1725241864978,-151.0,0.00026301,7]
[336917792,1725241864987,-608.5228033,0.00026301,2]
[336917794,1725241864996,-1420.47,0.00026301,2]
[336917796,1725241865005,-1502.11,0.00026301,2]
[336917798,1725241865014,-500.0,0.00026301,2]
[336917800,1725241865024,-715.22,0.00026301,2]
[336917801,1725241865033,-500.0,0.00026301,2]
[336917803,1725241865043,-2171.28,0.00026301,2]
[336917805,1725241865053,-500.0,0.00026301,2]
[336917807,1725241865063,-677.4,0.00026301,2]
[336917809,1725241865072,-987.53,0.00026301,2]
[336917811,1725241865082,-660.49,0.00026301,2]
[336917813,1725241865091,-1359.6,0.00026301,2]
[336917815,1725241865101,-500.0,0.00026301,2]
[336917817,1725241865111,-615.65,0.00026301,2]
[336917819,1725241865120,-510.15,0.00026301,2]
[336917821,1725241865130,-500.0,0.00026301,2]
[336917823,1725241865140,-500.0,0.00026301,2]
[336917825,1725241865149,-1469.24,0.00026301,2]
[336917827,1725241865159,-1368.38,0.00026301,2]
[336917829,1725241865169,-3682.87,0.00026301,2]
[336917831,1725241865178,-784.79,0.00026301,2]
[336917833,1725241865187,-640.79,0.00026301,2]
[336917835,1725241865197,-500.0,0.00026301,2]
[336917837,1725241865208,-500.0,0.00026301,2]
[336917839,1725241865217,-1038.11,0.00026301,2]
[336917841,1725241865227,-1420.05,0.00026301,2]
[336917843,1725241865236,-1292.79,0.00026301,2]
[336917845,1725241865246,-1527.81,0.00026301,2]
[336917847,1725241865256,-2206.57,0.00026301,2]
[336917849,1725241865267,-500.0,0.00026301,2]
[336917851,1725241865275,-500.0,0.00026301,2]
[336917853,1725241865285,-559.58,0.00026301,2]
[336917855,1725241865295,-586.90745776,0.00026301,2]
[336917857,1725241865305,-151.0,0.00026301,7]
[336917859,1725241865314,-151.0,0.00026301,7]
[336917861,1725241865324,-540.95,0.00026301,2]
[336917863,1725241865335,-151.0,0.00026353,3]
[336917865,1725241865346,-7458.94652043,0.0002649,2]
[336917867,1725241865356,-151.0,0.0002649,7]
[336917869,1725241865366,-151.0,0.00026518,3]
[336917871,1725241865375,-165.138182,0.00026521,2]
[336917873,1725241865385,-285.068132,0.0002655,2]
[336917875,1725241865394,-153.0,0.0002655,2]
[336917877,1725241865403,-153.0,0.0002655,2]
[336917879,1725241865412,-176.557797,0.00026561,2]
[336917881,1725241865422,-194.445948,0.00026561,2]
[336917883,1725241865431,-2409.53101312,0.00026565,3]
[336917885,1725241865440,-1173.41,0.00026574,2]
[336917887,1725241865450,-563.6,0.00026574,2]
[336917889,1725241865460,-8441.89,0.00026574,2]
[336917891,1725241865469,-1703.08,0.00026574,2]
[336917893,1725241865478,-1974.8,0.00026574,2]
[336917895,1725241865489,-3227.67,0.00026574,2]
[336917897,1725241865500,-1206.98,0.00026574,2]
[336917899,1725241865511,-1295.95,0.00026574,2]
[336917902,1725241865521,-525.12,0.00026574,2]
[336917904,1725241865532,-589.49,0.00026575,2]
[336917906,1725241865542,-882.48,0.00026575,2]
[336917908,1725241865552,-500.0,0.00026575,2]
[336917910,1725241865562,-282.0,0.00026575,7]
[336917912,1725241865571,-500.0,0.00026575,2]
[336917913,1725241865580,-692.14,0.00026575,2]
[336917915,1725241865589,-500.0,0.00026575,2]
[336917917,1725241865599,-500.0,0.00026575,2]
[336917929,1725241865706,-500.0,0.00026575,2]
[336917931,1725241865718,-1353.53,0.00026575,2]
[336917933,1725241865728,-690.61,0.00026575,2]
[336917935,1725241865737,-695.97,0.00026575,2]
[336917937,1725241865750,-500.0,0.00026575,2]
[336917939,1725241865759,-591.29,0.00026575,2]
[336917941,1725241865768,-519.39,0.00026575,2]
[336917943,1725241865777,-500.0,0.00026575,2]
[336917945,1725241865787,-557.59,0.00026575,2]
[336917946,1725241865796,-501.91495946,0.00026575,2]
[336917948,1725241865808,-500.0,0.00026575,2]
[336917950,1725241865818,-500.0,0.00026575,2]
[336917952,1725241865828,-439.35630765,0.00026575,2]
[336917954,1725241865838,-561.13029631,0.00026575,2]
[336917956,1725241865847,-500.0,0.00026575,2]
[336917958,1725241865857,-1056.18,0.00026575,2]
[336917960,1725241865866,-588.42,0.00026575,2]
[336917962,1725241865876,-500.0,0.00026575,2]
[336917964,1725241865885,-535.69773348,0.00026575,2]
[336917966,1725241865894,-1495.45,0.00026575,2]
[336917968,1725241865904,-1096.0,0.00026575,2]
[336917970,1725241865914,-500.0,0.00026575,2]
[336917972,1725241865924,-814.05,0.00026575,2]
[336917974,1725241865934,-500.0,0.00026575,2]
[336917976,1725241865945,-853.48,0.00026575,2]
[336917979,1725241865959,-1261.97,0.00026575,2]
[336917981,1725241865969,-1312.91,0.00026575,2]
[336917983,1725241865978,-1049.4,0.00026575,2]
[336917985,1725241865987,-751.59,0.00026575,2]
[336917987,1725241865996,-888.46,0.00026575,2]
[336917989,1725241866006,-956.79,0.00026575,2]
[336917991,1725241866015,-500.0,0.00026575,2]
[336917992,1725241866025,-567.63,0.00026575,2]
[336917994,1725241866034,-500.0,0.00026575,2]
[336917996,1725241866043,-500.0,0.00026575,2]
[336917998,1725241866053,-500.0,0.00026575,2]
[336918000,1725241866063,-500.0,0.00026575,2]
[336918002,1725241866072,-500.0,0.00026575,2]
[336918004,1725241866081,-500.0,0.00026575,2]
[336918006,1725241866091,-4058.39,0.00026575,2]
[336918008,1725241866101,-500.0,0.00026575,2]
[336918010,1725241866110,-734.36,0.00026575,2]
[336918012,1725241866119,-500.0,0.00026575,2]
[336918014,1725241866129,-500.0,0.00026575,2]
[336918016,1725241866138,-500.0,0.00026575,2]
[336918018,1725241866147,-500.0,0.00026575,2]
[336918020,1725241866157,-500.0,0.00026575,2]
[336918022,1725241866168,-500.0,0.00026575,2]
[336918024,1725241866177,-500.0,0.00026575,2]
[336918026,1725241866187,-500.0,0.00026575,2]
[336918028,1725241866197,-1316.0,0.00026575,2]
[336918030,1725241866211,-500.0,0.00026575,2]
[336918032,1725241866221,-500.0,0.00026575,2]
[336918034,1725241866230,-663.31,0.00026575,2]
[336918036,1725241866240,-666.35,0.00026575,2]
[336918038,1725241866249,-500.0,0.00026575,2]
[336918040,1725241866259,-873.75,0.00026575,2]
[336918042,1725241866269,-500.0,0.00026575,2]
[336918044,1725241866279,-771.43,0.00026575,2]
[336918045,1725241866288,-775.24,0.00026575,2]
[336918046,1725241866298,-500.0,0.00026575,2]
[336918047,1725241866308,-554.23,0.00026575,2]
[336918048,1725241866317,-500.0,0.00026575,2]
[336918049,1725241866328,-500.0,0.00026575,2]
[336918050,1725241866338,-500.0,0.00026575,2]
[336918051,1725241866349,-500.0,0.00026575,2]
[336918052,1725241866359,-536.04124177,0.00026575,2]
[336918053,1725241866370,-500.0,0.00026575,2]
[336918054,1725241866380,-500.0,0.00026575,2]
[336918055,1725241866389,-500.0,0.00026575,2]
[336918056,1725241866399,-570.669813,0.00026575,7]
[336918057,1725241866409,-500.0,0.00026575,2]
[336918058,1725241866418,-809.88,0.00026575,2]
[336918059,1725241866428,-500.0,0.00026575,2]
[336918060,1725241866437,-570.669809,0.00026575,7]
[336918061,1725241866447,-2172.66,0.00026575,2]
[336918062,1725241866458,-203.44998282,0.00026575,2]
[336918063,1725241866467,-500.0,0.00026575,2]
[336918064,1725241866477,-500.0,0.00026575,2]
[336918065,1725241866486,-1751.19,0.00026575,2]
[336918067,1725241866495,-496.03349054,0.00026575,2]
[336918068,1725241866505,-456.13021253,0.00026575,2]
[336918070,1725241866515,-898.37,0.00026575,2]
[336918072,1725241866524,-2340.67,0.00026575,2]
[336918074,1725241866534,-500.0,0.00026575,2]
[336918076,1725241866544,-598.55,0.00026575,2]
[336918078,1725241866554,-630.16,0.00026575,2]
[336918080,1725241866563,-500.0,0.00026575,2]
[336918082,1725241866574,-598.96727796,0.00026575,2]
[336918085,1725241866583,-500.0,0.00026575,2]
[336918086,1725241866593,-500.0,0.00026575,2]
[336918088,1725241866602,-1293.18,0.00026575,2]
[336918091,1725241866612,-500.0,0.00026575,2]
[336918093,1725241866622,-504.9954499,0.00026575,2]
[336918095,1725241866631,-3476.66,0.00026575,2]
[336918097,1725241866640,-1516.91,0.00026575,2]
[336918098,1725241866650,-1634.96,0.00026575,2]
[336918100,1725241866659,-1875.06,0.00026575,2]
[336918103,1725241866669,-662.86,0.00026575,2]
[336918104,1725241866679,-500.0,0.00026575,2]
[336918106,1725241866688,-1453.83,0.00026575,2]
[336918108,1725241866697,-833.21,0.00026575,2]
[336918110,1725241866708,-1123.19,0.00026575,2]
[336918112,1725241866717,-971.65,0.00026575,2]
[336918114,1725241866726,-500.0,0.00026575,2]
[336918116,1725241866735,-500.0,0.00026575,2]
[336918118,1725241866747,-500.0,0.00026575,2]
[336918120,1725241866756,-2153.18,0.00026575,2]
[336918121,1725241866766,-500.0,0.00026575,2]
[336918123,1725241866776,-500.0,0.00026575,2]
[336918125,1725241866786,-1659.98,0.00026575,2]
[336918127,1725241866798,-1623.63,0.00026575,2]
[336918129,1725241866808,-2224.77,0.00026575,2]
[336918131,1725241866817,-1144.81,0.00026575,2]
[336918133,1725241866830,-700.92,0.00026575,2]
[336918136,1725241866841,-632.74,0.00026575,2]
[336918137,1725241866850,-1825.04,0.00026575,2]
[336918139,1725241866859,-514.74,0.00026575,2]
[336918141,1725241866869,-500.0,0.00026575,2]
[336918143,1725241866879,-554.09,0.00026575,2]
[336918146,1725241866889,-1198.03,0.00026575,2]
[336918148,1725241866900,-1509.68,0.00026575,2]
[336918149,1725241866909,-488.58025682,0.00026575,2]
[336918151,1725241866919,-2597.51,0.00026575,2]
[336918153,1725241866928,-500.0,0.00026575,2]
[336918155,1725241866938,-500.0,0.00026575,2]
[336918158,1725241866948,-708.92,0.00026575,2]
[336918159,1725241866960,-500.0,0.00026575,2]
[336918161,1725241866969,-500.0,0.00026575,2]
[336918163,1725241866979,-667.2,0.00026575,2]
[336918165,1725241866989,-5040.89,0.00026575,2]
[336918167,1725241866998,-1599.44,0.00026575,2]
[336918169,1725241867008,-500.0,0.00026575,2]
[336918171,1725241867017,-714.24,0.00026575,2]
[336918173,1725241867028,-534.48816533,0.00026575,2]
[336918175,1725241867039,-1097.03,0.00026575,2]
[336918177,1725241867048,-1710.39,0.00026575,2]
[336918179,1725241867057,-853.23,0.00026575,2]
[336918181,1725241867067,-1479.22,0.00026575,2]
[336918183,1725241867077,-500.0,0.00026575,2]
[336918185,1725241867087,-1420.47,0.00026575,2]
[336918187,1725241867097,-203.415714,0.00026575,7]
[336918189,1725241867107,-1502.11,0.00026575,2]
[336918192,1725241867118,-500.0,0.00026575,2]
[336918194,1725241867128,-715.22,0.00026575,2]
[336918196,1725241867138,-500.0,0.00026575,2]
[336918198,1725241867149,-2171.28,0.00026575,2]
[336918200,1725241867159,-500.0,0.00026575,2]
[336918202,1725241867169,-677.4,0.00026575,2]
[336918204,1725241867179,-987.53,0.00026575,2]
[336918206,1725241867188,-660.49,0.00026575,2]
[336918208,1725241867198,-1359.6,0.00026575,2]
[336918210,1725241867210,-500.0,0.00026575,2]
[336918212,1725241867220,-615.65,0.00026575,2]
[336918214,1725241867230,-510.15,0.00026575,2]
[336918216,1725241867240,-500.0,0.00026575,2]
[336918218,1725241867251,-500.0,0.00026575,2]
[336918220,1725241867261,-1469.24,0.00026575,2]
[336918222,1725241867271,-1368.38,0.00026575,2]
[336918224,1725241867282,-3682.87,0.00026575,2]
[336918226,1725241867292,-784.79,0.00026575,2]
[336918228,1725241867301,-640.79,0.00026575,2]
[336918230,1725241867312,-500.0,0.00026575,2]
[336918232,1725241867322,-500.0,0.00026575,2]
[336918234,1725241867332,-1038.11,0.00026575,2]
[336918237,1725241867342,-1420.05,0.00026575,2]
[336918239,1725241867355,-1292.79,0.00026575,2]
[336918241,1725241867366,-1527.81,0.00026575,2]
[336918243,1725241867376,-2206.57,0.00026575,2]
[336918245,1725241867386,-459.24370947,0.00026575,2]
[336918247,1725241867396,-500.0,0.00026575,2]
[336918249,1725241867406,-559.58,0.00026575,2]
[336918251,1725241867415,-151.0,0.00026575,7]
[336918253,1725241867424,-297.402624,0.00026575,7]
[336918255,1725241867434,-540.95,0.00026575,2]
[336918257,1725241867444,-151.0,0.00026684,3]
[336918259,1725241867456,-158.43,0.00026749,7]
[336918261,1725241867466,-159.57,0.00026749,7]
[336918263,1725241867476,-421.619484,0.00026759,2]
[336918265,1725241867485,-208.788142,0.00026759,2]
[336918267,1725241867495,-392.012777,0.00026759,2]
[336918269,1725241867504,-365.885359,0.00026759,2]
[336918271,1725241867513,-548.82804,0.00026759,2]
[336918273,1725241867523,-946.425507,0.00026759,2]
[336918275,1725241867532,-194.387885,0.00026759,2]
[336918277,1725241867542,-994.971258,0.00026759,2]
[336918278,1725241867551,-700.611448,0.00026759,2]
[336918280,1725241867560,-175.152861,0.00026759,2]
[336918282,1725241867570,-186.121691,0.00026759,2]
[336918284,1725241867579,-1173.41,0.00026848,2]
[336918286,1725241867589,-563.6,0.00026848,2]
[336918298,1725241867692,-8441.89,0.00026848,2]
[336918299,1725241867704,-1703.08,0.00026848,2]
[336918301,1725241867713,-1974.8,0.00026848,2]
[336918303,1725241867723,-3227.67,0.00026848,2]
[336918306,1725241867734,-1206.98,0.00026848,2]
[336918307,1725241867745,-1295.95,0.00026848,2]
[336918309,1725241867759,-525.12,0.00026848,2]
[336918311,1725241867768,-589.49,0.00026849,2]
[336918313,1725241867777,-882.48,0.00026849,2]
[336918315,1725241867789,-500.0,0.00026849,2]
[336918317,1725241867798,-500.0,0.00026849,2]
[336918319,1725241867808,-692.14,0.00026849,2]
[336918321,1725241867818,-500.0,0.00026849,2]
[336918324,1725241867833,-500.0,0.00026849,2]
[336918325,1725241867843,-500.0,0.00026849,2]
[336918327,1725241867853,-1353.53,0.00026849,2]
[336918329,1725241867862,-690.61,0.00026849,2]
[336918331,1725241867872,-695.97,0.00026849,2]
[336918333,1725241867881,-500.0,0.00026849,2]